fUSD/lending_fUSD_20240317
["ID","MTS","AMOUNT","RATE_DAILY","PERIOD"]
[319381415,1710708697853,-500.0,0.0001863,2]
[319381416,1710708697864,-500.0,0.0001863,2]
[319381417,1710708697873,-677.69,0.0001863,2]
[319381418,1710708697882,-2727.1,0.0001863,2]
[319381419,1710708697892,-500.0,0.0001863,2]
[319381420,1710708697901,-500.0,0.0001863,2]
[319381421,1710708697911,-677.69,0.0001863,2]
[319381422,1710708697920,-500.0,0.0001863,2]
[319381423,1710708697930,-866.76,0.0001863,2]
[319381424,1710708697939,-2727.1,0.0001863,2]
[319381425,1710708697948,-500.0,0.0001863,2]
[319381426,1710708697957,-484.89063844,0.0001863,2]
[319381427,1710708697966,-2352.79,0.0001863,2]
[319381428,1710708697975,-677.69,0.0001863,2]
[319381429,1710708697984,-866.76,0.0001863,2]
[319381430,1710708697993,-2727.1,0.0001863,2]
[319381431,1710708698002,-613.80175988,0.0001863,2]
[319381432,1710708698012,-500.0,0.0001863,2]
[319381433,1710708698021,-2727.1,0.0001863,2]
[319381434,1710708698030,-866.76,0.0001863,2]
[319381435,1710708698039,-677.69,0.0001863,2]
[319381436,1710708698048,-500.0,0.0001863,2]
[319381437,1710708698057,-500.0,0.0001863,2]
[319381438,1710708698066,-2352.79,0.0001863,2]
[319381439,1710708698075,-866.76,0.0001863,2]
[319381440,1710708698084,-2727.1,0.0001863,2]
[319381441,1710708698093,-209.90534083,0.0001863,2]
[319381442,1710708698102,-505.61322698,0.0001863,2]
[319381443,1710708698112,-2352.79,0.0001863,2]
[319381444,1710708698121,-2727.1,0.0001863,2]
[319381445,1710708698129,-866.76,0.0001863,2]
[319381446,1710708698139,-2352.79,0.0001863,2]
[319381447,1710708698148,-2727.1,0.0001863,2]
[319381448,1710708698157,-677.69,0.0001863,2]
[319381449,1710708698166,-866.76,0.0001863,2]
[319381450,1710708698176,-500.0,0.0001863,2]
[319381451,1710708698185,-2352.79,0.0001863,2]
[319381452,1710708698195,-2727.1,0.0001863,2]
[319381453,1710708698204,-866.76,0.0001863,2]
[319381454,1710708698213,-677.69,0.0001863,2]
[319381455,1710708698223,-2352.79,0.0001863,2]
[319381456,1710708698232,-500.0,0.0001863,2]
[319381457,1710708698241,-677.69,0.0001863,2]
[319381458,1710708698251,-2727.1,0.0001863,2]
[319381459,1710708698260,-866.76,0.0001863,2]
[319381460,1710708698270,-2352.79,0.0001863,2]
[319381461,1710708698279,-2727.1,0.0001863,2]
[319381462,1710708698288,-500.0,0.0001863,2]
[319381463,1710708698298,-866.76,0.0001863,2]
[319381464,1710708698307,-677.69,0.0001863,2]
[319381465,1710708698317,-2352.79,0.0001863,2]
[319381466,1710708698326,-2727.1,0.0001863,2]
[319381467,1710708698335,-866.76,0.0001863,2]
[319381468,1710708698344,-677.69,0.0001863,2]
[319381469,1710708698353,-2352.79,0.0001863,2]
[319381470,1710708698362,-2727.1,0.0001863,2]
[319381471,1710708698372,-866.76,0.0001863,2]
[319381472,1710708698381,-500.0,0.0001863,2]
[319381473,1710708698390,-677.69,0.0001863,2]
[319381474,1710708698400,-2352.79,0.0001863,2]
[319381475,1710708698409,-500.0,0.0001863,2]
[319381476,1710708698418,-2727.1,0.0001863,2]
[319381477,1710708698426,-500.0,0.0001863,2]
[319381478,1710708698436,-866.76,0.0001863,2]
[319381479,1710708698445,-677.69,0.0001863,2]
[319381480,1710708698454,-2352.79,0.0001863,2]
[319381481,1710708698463,-2727.1,0.0001863,2]
[319381482,1710708698472,-500.0,0.0001863,2]
[319381483,1710708698482,-866.76,0.0001863,2]
[319381484,1710708698491,-677.69,0.0001863,2]
[319381485,1710708698500,-2727.1,0.0001863,2]
[319381486,1710708698510,-500.0,0.0001863,2]
[319381487,1710708698519,-866.76,0.0001863,2]
[319381488,1710708698529,-2352.79,0.0001863,2]
[319381489,1710708698538,-677.69,0.0001863,2]
[319381490,1710708698547,-500.0,0.0001863,2]
[319381491,1710708698557,-866.76,0.0001863,2]
[319381492,1710708698566,-500.0,0.0001863,2]
[319381493,1710708698575,-677.69,0.0001863,2]
[319381494,1710708698584,-2352.79,0.0001863,2]
[319381495,1710708698594,-500.0,0.0001863,2]
[319381496,1710708698603,-2727.1,0.0001863,2]
[319381497,1710708698613,-866.76,0.0001863,2]
[319381498,1710708698623,-2352.79,0.0001863,2]
[319381499,1710708698633,-500.0,0.0001863,2]
[319381500,1710708698643,-677.69,0.0001863,2]
[319381501,1710708698652,-500.0,0.0001863,2]
[319381502,1710708698662,-500.0,0.0001863,2]
[319381503,1710708698671,-2727.1,0.0001863,2]
[319381504,1710708698681,-866.76,0.0001863,2]
[319381505,1710708698690,-2352.79,0.0001863,2]
[319381506,1710708698700,-500.0,0.0001863,2]
[319381507,1710708698709,-677.69,0.0001863,2]
[319381508,1710708698724,-500.0,0.0001863,2]
[319381509,1710708698733,-1193.57,0.0001863,2]
[319381510,1710708698742,-2727.1,0.0001863,2]
[319381511,1710708698752,-500.0,0.0001863,2]
[319381512,1710708698762,-866.76,0.0001863,2]
[319381513,1710708698772,-2352.79,0.0001863,2]
[319381514,1710708698781,-500.0,0.0001863,2]
[319381515,1710708698791,-677.86345362,0.0001863,2]
[319381516,1710708698802,-500.0,0.0001863,2]
[319381517,1710708698811,-500.0,0.0001863,2]
[319381518,1710708698821,-2727.1,0.0001863,2]
[319381519,1710708698831,-1193.57,0.0001863,2]
[319381520,1710708698840,-500.0,0.0001863,2]
[319381521,1710708698850,-866.76,0.0001863,2]
[319381522,1710708698859,-2352.79,0.0001863,2]
[319381523,1710708698869,-500.0,0.0001863,2]
[319381524,1710708698879,-500.0,0.0001863,2]
[319381525,1710708698888,-2727.1,0.0001863,2]
[319381526,1710708698898,-1193.57,0.0001863,2]
[319381527,1710708698908,-866.76,0.0001863,2]
[319381528,1710708698918,-500.0,0.0001863,2]
[319381529,1710708698927,-2352.79,0.0001863,2]
[319381530,1710708698937,-10806.166,0.0001863,2]
[319381531,1710708698947,-11230.986,0.0001863,2]
[319381532,1710708698956,-11107.15,0.0001863,2]
[319381533,1710708698966,-10826.989,0.0001863,2]
[319381534,1710708698976,-11152.201,0.0001863,2]
[319381535,1710708698986,-572.42482296,0.00018645,2]
[319381536,1710708698995,-180.0,0.00018657,2]
[319381537,1710708699005,-157.33,0.00018681,10]
[319381538,1710708699015,-180.0,0.00018685,2]
[319381539,1710708699024,-180.0,0.00018712,2]
[319381540,1710708699035,-180.0,0.0001874,2]
[319381541,1710708699044,-180.0,0.00018767,2]
[319381542,1710708699053,-500.0,0.00018779,2]
[319381543,1710708699063,-154.5275948,0.00018785,2]
[319381544,1710708699072,-180.0,0.00018794,2]
[319381545,1710708699082,-1391.2102795,0.000188,2]
[319381546,1710708699091,-6910.34411375,0.0001881,2]
[319381547,1710708699101,-180.0,0.00018822,2]
[319381548,1710708699112,-180.0,0.00018849,2]
[319381549,1710708699121,-158.29036305,0.00018863,2]
[319381550,1710708699131,-154.06087022,0.00018866,2]
[319381551,1710708699141,-151.27358263,0.00018873,2]
[319381552,1710708699150,-180.0,0.00018877,2]
[319381553,1710708699159,-331.36629835,0.00018899,2]
[319381554,1710708699169,-296.71847077,0.000189,2]
[319381555,1710708699179,-235.00914,0.000189,2]
[319381556,1710708699189,-235.00914,0.000189,2]
[319381557,1710708699203,-203.884533,0.000189,2]
[319381558,1710708699214,-203.884533,0.000189,2]
[319381559,1710708699224,-151.0,0.000189,2]
[319381560,1710708699234,-151.0,0.000189,2]
[319381561,1710708699245,-151.0,0.000189,2]
[319381562,1710708699255,-302.0586,0.000189,2]
[319381563,1710708699265,-302.0586,0.000189,2]
[319381564,1710708699274,-152.648474,0.000189,2]
[319381565,1710708699283,-337.750596,0.000189,2]
[319381566,1710708699293,-337.750596,0.000189,2]
[319381567,1710708699303,-17928.14501369,0.000189,2]
[319381568,1710708699314,-17928.14501369,0.000189,2]
[319381569,1710708699323,-17928.14501369,0.000189,2]
[319381570,1710708699333,-17928.14501369,0.000189,2]
[319381571,1710708699342,-17928.14501369,0.000189,2]
[319381572,1710708699352,-17928.14501369,0.000189,2]
[319381573,1710708699363,-17928.14501369,0.000189,2]
[319381574,1710708699372,-17928.14501369,0.000189,2]
[319381575,1710708699382,-195.0,0.00018904,2]
[319381576,1710708699393,-207.136487,0.00018904,2]
[319381577,1710708699402,-1391.2102795,0.00018948,2]
[319381578,1710708699412,-1073.44325364,0.00019,2]
[319381579,1710708699422,-155.0,0.00019,2]
[319381580,1710708699431,-650.0,0.00019,3]
[319381581,1710708699441,-166.66666666,0.00019069,2]
[319381582,1710708699450,-157.33,0.00019117,10]
[319381583,1710708699460,-549.89,0.00019178,2]
[319381584,1710708699469,-549.89,0.00019178,2]
[319381585,1710708699479,-549.89,0.00019178,2]
[319381586,1710708699489,-549.89,0.00019178,2]
[319381587,1710708699499,-549.89,0.00019178,2]
[319381588,1710708699509,-549.89,0.00019178,2]
[319381589,1710708699518,-549.89,0.00019178,2]
[319381590,1710708699528,-549.89,0.00019178,2]
[319381591,1710708699538,-549.89,0.00019178,2]
[319381592,1710708699548,-549.89,0.00019178,2]
[319381593,1710708699558,-549.89,0.00019178,2]
[319381594,1710708699568,-549.89,0.00019178,2]
[319381595,1710708699578,-549.89,0.00019178,2]
[319381596,1710708699587,-549.89,0.00019178,2]
[319381597,1710708699597,-549.89,0.00019178,2]
[319381598,1710708699607,-549.89,0.00019178,2]
[319381599,1710708699617,-549.89,0.00019178,2]
[319381600,1710708699627,-549.89,0.00019178,2]
[319381601,1710708699637,-549.89,0.00019178,2]
[319381602,1710708699647,-549.89,0.00019178,2]
[319381603,1710708699656,-549.89,0.00019178,2]
[319381604,1710708699666,-549.89,0.00019178,2]
[319381605,1710708699676,-549.89,0.00019178,2]
[319381606,1710708699686,-549.9495838,0.00019178,2]
[319381607,1710708699695,-500.0,0.00019178,2]
[319381608,1710708699705,-500.0,0.00019178,2]
[319381609,1710708699716,-395.51837726,0.00019178,2]
[319381610,1710708699728,-500.0,0.00019178,2]
[319381611,1710708699738,-500.0,0.00019178,2]
[319381612,1710708699747,-458.01758192,0.00019178,2]
[319381613,1710708699757,-500.0,0.00019178,2]
[319381614,1710708699767,-829.57204187,0.00019178,2]
[319381615,1710708699776,-500.0,0.00019178,2]
[319381616,1710708699786,-500.0,0.00019178,2]
[319381617,1710708699796,-500.0,0.00019178,2]
[319381618,1710708699807,-500.0,0.00019178,2]
[319381619,1710708699817,-500.0,0.00019178,2]
[319381620,1710708699828,-829.57204187,0.00019178,2]
[319381621,1710708699838,-500.0,0.00019178,2]
[319381622,1710708699847,-500.0,0.00019178,2]
[319381623,1710708699857,-500.0,0.00019178,2]
[319381624,1710708699868,-500.0,0.00019178,2]
[319381625,1710708699878,-500.0,0.00019178,2]
[319381626,1710708699887,-829.57204187,0.00019178,2]
[319381627,1710708699897,-500.0,0.00019178,2]
[319381628,1710708699907,-426.91689163,0.00019178,2]
[319381629,1710708699917,-500.0,0.00019178,2]
[319381630,1710708699927,-298.35915793,0.00019178,2]
[319381631,1710708699937,-829.57204187,0.00019178,2]
[319381632,1710708699947,-500.0,0.00019178,2]
[319381633,1710708699957,-500.0,0.00019178,2]
[319381634,1710708699967,-500.0,0.00019178,2]
[319381635,1710708699977,-829.57204187,0.00019178,2]
[319381636,1710708699987,-500.0,0.00019178,2]
[319381637,1710708699997,-500.0,0.00019178,2]
[319381638,1710708700007,-829.57204187,0.00019178,2]
[319381639,1710708700017,-500.0,0.00019178,2]
[319381640,1710708700026,-500.0,0.00019178,2]
[319381641,1710708700036,-500.0,0.00019178,2]
[319381642,1710708700045,-500.0,0.00019178,2]
[319381643,1710708700055,-500.0,0.00019178,2]
[319381644,1710708700064,-829.57204187,0.00019178,2]
[319381645,1710708700074,-500.0,0.00019178,2]
[319381646,1710708700084,-829.57204187,0.00019178,2]
[319381647,1710708700094,-500.0,0.00019178,2]
[319381648,1710708700104,-215.20614525,0.00019178,2]
[319381649,1710708700114,-566.11500476,0.00019178,2]
[319381650,1710708700125,-500.0,0.00019178,2]
[319381651,1710708700135,-829.57204187,0.00019178,2]
[319381652,1710708700145,-500.0,0.00019178,2]
[319381653,1710708700155,-500.0,0.00019178,2]
[319381654,1710708700165,-500.0,0.00019178,2]
[319381655,1710708700175,-829.57204187,0.00019178,2]
[319381656,1710708700185,-265.51051488,0.00019178,2]
[319381657,1710708700195,-500.0,0.00019178,2]
[319381658,1710708700204,-829.57204187,0.00019178,2]
[319381659,1710708700214,-500.0,0.00019178,2]
[319381660,1710708700224,-829.57204187,0.00019178,2]
[319381661,1710708700234,-500.0,0.00019178,2]
[319381662,1710708700244,-500.0,0.00019178,2]
[319381663,1710708700255,-829.57204187,0.00019178,2]
[319381664,1710708700265,-500.0,0.00019178,2]
[319381665,1710708700275,-829.57204187,0.00019178,2]
[319381666,1710708700285,-500.0,0.00019178,2]
[319381667,1710708700296,-829.57204187,0.00019178,2]
[319381668,1710708700305,-829.57204187,0.00019178,2]
[319381669,1710708700315,-500.0,0.00019178,2]
[319381670,1710708700325,-829.57204187,0.00019178,2]
[319381671,1710708700336,-829.57204187,0.00019178,2]
[319381672,1710708700346,-251.78693321,0.00019178,2]
[319381673,1710708700355,-829.57204187,0.00019178,2]
[319381674,1710708700367,-829.57204187,0.00019178,2]
[319381675,1710708700377,-829.57204187,0.00019178,2]
[319381676,1710708700388,-829.57204187,0.00019178,2]
[319381677,1710708700398,-829.57204187,0.00019178,2]
[319381678,1710708700408,-829.57204187,0.00019178,2]
[319381679,1710708700418,-829.57204187,0.00019178,2]
[319381680,1710708700430,-829.57204187,0.00019178,2]
[319381681,1710708700442,-829.57204187,0.00019178,2]
[319381682,1710708700453,-829.57204187,0.00019178,2]
[319381683,1710708700463,-829.57204187,0.00019178,2]
[319381684,1710708700473,-829.57204187,0.00019178,2]
[319381685,1710708700483,-829.57204187,0.00019178,2]
[319381686,1710708700494,-829.57204187,0.00019178,2]
[319381687,1710708700505,-829.57204187,0.00019178,2]
[319381688,1710708700729,-829.57204187,0.00019178,2]
[319381689,1710708700739,-829.57204187,0.00019178,2]
[319381690,1710708700748,-829.57204187,0.00019178,2]
[319381691,1710708700759,-829.57204187,0.00019178,2]
[319381692,1710708700769,-829.57204187,0.00019178,2]
[319381693,1710708700779,-829.57204187,0.00019178,2]
[319381694,1710708700788,-829.57204187,0.00019178,2]
[319381695,1710708700799,-829.57204187,0.00019178,2]
[319381696,1710708700808,-829.57204187,0.00019178,2]
[319381697,1710708700818,-829.57204187,0.00019178,2]
[319381698,1710708700827,-829.57204187,0.00019178,2]
[319381699,1710708700836,-829.57204187,0.00019178,2]
[319381700,1710708700846,-829.57204187,0.00019178,2]
[319381701,1710708700855,-829.57204187,0.00019178,2]
[319381702,1710708700864,-829.57204187,0.00019178,2]
[319381703,1710708700873,-829.57204187,0.00019178,2]
[319381704,1710708700882,-829.57204187,0.00019178,2]
[319381705,1710708700892,-829.57204187,0.00019178,2]
[319381706,1710708700901,-829.57204187,0.00019178,2]
[319381707,1710708700910,-829.57204187,0.00019178,2]
[319381708,1710708700919,-829.57204187,0.00019178,2]
[319381709,1710708700928,-500.0,0.00019178,2]
[319381710,1710708700938,-603.16286092,0.00019178,2]
[319381711,1710708700947,-1379.10857329,0.00019178,2]
[319381712,1710708700957,-1379.10857329,0.00019178,2]
[319381713,1710708700967,-1379.10857329,0.00019178,2]
[319381714,1710708700976,-1379.10857329,0.00019178,2]
[319381715,1710708700986,-1379.10857329,0.00019178,2]
[319381716,1710708700995,-1379.10857329,0.00019178,2]
[319381717,1710708701004,-1379.10857329,0.00019178,2]
[319381718,1710708701014,-1379.10857329,0.00019178,2]
[319381719,1710708701024,-1379.10857329,0.00019178,2]
[319381720,1710708701033,-1379.10857329,0.00019178,2]
[319381721,1710708701042,-1379.10857329,0.00019178,2]
[319381722,1710708701051,-1379.10857329,0.00019178,2]
[319381723,1710708701061,-1379.10857329,0.00019178,2]
[319381724,1710708701073,-1379.10857329,0.00019178,2]
[319381725,1710708701082,-500.0,0.00019178,2]
[319381726,1710708701092,-1379.10857329,0.00019178,2]
[319381727,1710708701101,-1379.10857329,0.00019178,2]
[319381728,1710708701111,-500.0,0.00019178,2]
[319381729,1710708701122,-1379.10857329,0.00019178,2]
[319381730,1710708701131,-1379.10857329,0.00019178,2]
[319381731,1710708701140,-500.0,0.00019178,2]
[319381732,1710708701149,-1379.10857329,0.00019178,2]
[319381733,1710708701159,-1379.10857329,0.00019178,2]
[319381734,1710708701170,-500.0,0.00019178,2]
[319381735,1710708701179,-1379.10857329,0.00019178,2]
[319381736,1710708701189,-1379.10857329,0.00019178,2]
[319381737,1710708701198,-266.08239895,0.00019178,2]
[319381738,1710708701208,-1379.10857329,0.00019178,2]
[319381739,1710708701219,-1379.10857329,0.00019178,2]
[319381740,1710708701228,-1379.10857329,0.00019178,2]
[319381741,1710708701243,-1379.10857329,0.00019178,2]
[319381742,1710708701252,-1379.10857329,0.00019178,2]
[319381743,1710708701262,-1379.10857329,0.00019178,2]
[319381744,1710708701272,-1379.10857329,0.00019178,2]
[319381745,1710708701282,-1379.10857329,0.00019178,2]
[319381746,1710708701292,-1379.10857329,0.00019178,2]
[319381747,1710708701302,-1379.10857333,0.00019178,2]
[319381748,1710708701312,-1379.10857333,0.00019178,2]
[319381749,1710708701322,-1379.10857332,0.00019178,2]
[319381750,1710708701332,-383.30948688,0.00019178,2]
[319381751,1710708701341,-350.0,0.00019178,2]
[319381752,1710708701351,-150.0,0.00019178,2]
[319381753,1710708701361,-55000.0,0.00019178,2]
[319381754,1710708701371,-151.0,0.0001918,2]
[319381755,1710708701381,-151.0,0.0001918,2]
[319381756,1710708701390,-151.0,0.0001918,2]
[319381757,1710708701401,-151.0,0.0001918,2]
[319381758,1710708701410,-151.0,0.0001918,2]
[319381759,1710708701420,-3660.41,0.0001918,2]
[319381760,1710708701429,-3660.41,0.0001918,2]
[319381761,1710708701439,-3660.41,0.0001918,2]
[319381762,1710708701448,-3660.41,0.0001918,2]
[319381763,1710708701458,-3660.41,0.0001918,2]
[319381764,1710708701467,-3660.41,0.0001918,2]
[319381765,1710708701477,-3660.41,0.0001918,2]
[319381766,1710708701486,-3660.41,0.0001918,2]
[319381767,1710708701495,-3660.41,0.0001918,2]
[319381768,1710708701504,-3660.41,0.0001918,2]
[319381769,1710708701514,-13267.63637458,0.000192,2]
[319381770,1710708701524,-1391.2102795,0.00019231,2]
[319381771,1710708701534,-151.27358263,0.00019254,2]
[319381772,1710708701543,-1400.0,0.00019255,2]
[319381773,1710708701553,-180.0,0.00019288,2]
[319381774,1710708701563,-150.80584847,0.00019323,2]
[319381775,1710708701573,-151.16603038,0.00019338,2]
[319381776,1710708701584,-166.43347962,0.0001936,2]
[319381777,1710708701594,-380.74,0.00019411,2]
[319381778,1710708701604,-154.06087022,0.00019417,2]
[319381779,1710708701614,-45791.83222012,0.0001944,2]
[319381780,1710708701624,-837.12780144,0.000195,2]
[319381781,1710708701633,-151.09503482,0.00019516,2]
[319381782,1710708701643,-155.08176692,0.00019524,2]
[319381783,1710708701653,-262.820352,0.00019553,2]
[319381784,1710708701663,-157.33,0.00019553,10]
[319381785,1710708701673,-1088.26123497,0.00019557,2]
[319381786,1710708701683,-233.0,0.0001956,15]
[319381787,1710708701693,-150.0,0.00019567,2]
[319381788,1710708701702,-154.42,0.0001957,15]
[319381789,1710708701713,-152.16,0.0001957,15]
[319381790,1710708701726,-233.0,0.0001957,15]
[319381791,1710708701735,-150.5,0.0001958,15]
[319381792,1710708701744,-150.5,0.0001958,15]
[319381793,1710708701754,-233.0,0.0001958,15]
[319381794,1710708701765,-153.31,0.0001959,15]
[319381795,1710708701774,-155.35,0.0001959,15]
[319381796,1710708701784,-152.08,0.0001959,15]
[319381797,1710708701793,-152.35,0.0001959,15]
[319381798,1710708701805,-150.5,0.0001959,15]
[319381799,1710708701815,-151.22,0.0001959,15]
[319381800,1710708701825,-150.76,0.0001959,15]
[319381801,1710708701835,-150.5,0.0001959,15]
[319381802,1710708701844,-2500.0,0.000196,2]
[319381803,1710708701854,-331.36629835,0.0001963,2]
[319381804,1710708701865,-1391.2102795,0.00019659,2]
[319381805,1710708701874,-150.0,0.00019683,2]
[319381806,1710708701884,-166.43347962,0.00019718,2]
[319381807,1710708701893,-151.0,0.00019726,2]
[319381808,1710708701903,-151.0,0.00019726,2]
[319381809,1710708701913,-207.136487,0.00019726,2]
[319381810,1710708701922,-11055.43,0.00019726,2]
[319381811,1710708701931,-154.06087022,0.00019749,2]
[319381812,1710708701941,-572.42482296,0.00019827,2]
[319381813,1710708701950,-331.36629835,0.0001993,2]
[319381814,1710708701960,-151.27358263,0.00019958,2]
[319381815,1710708701970,-1391.2102795,0.00019968,2]
[319381816,1710708701979,-11055.43,0.00019974,2]
[319381817,1710708701989,-486.78685876,0.0001998,2]
[319381818,1710708701998,-2500.0,0.0002,2]
[319381819,1710708702008,-3039.91368398,0.0002,2]
[319381820,1710708702018,-27502.23921407,0.0002,2]
[319381821,1710708702027,-188.85748255,0.0002,2]
[319381822,1710708702037,-155.0,0.0002,2]
[319381823,1710708702046,-286.63395729,0.0002,2]
[319381824,1710708702055,-1246.7636923,0.0002,2]
[319381825,1710708702065,-155.0,0.0002,2]
[319381826,1710708702075,-18774.23774994,0.0002,2]
[319381827,1710708702085,-3135.72482519,0.0002,2]
[319381828,1710708702095,-5041.86389397,0.0002,2]
[319381829,1710708702158,-2727.1,0.0001863,2]
[319381830,1710708702167,-500.0,0.0001863,2]
[319381831,1710708702177,-500.0,0.0001863,2]
[319381832,1710708702186,-1193.57,0.0001863,2]
[319381833,1710708702195,-11632.87936685,0.0002,2]
[319381834,1710708702223,-303.16003,0.0001863,2]
[319381835,1710708702234,-196.83997,0.0001863,2]
[319381836,1710708702243,-118.16003,0.0001863,2]
[319381837,1710708702261,-748.59997,0.0001863,2]
[319381838,1710708702271,-1612.23577675,0.0001863,2]
[319381839,1710708702283,-740.55422325,0.0001863,2]
[319381840,1710708702292,-966.59784386,0.0002,2]
[319381841,1710708702313,-500.0,0.0001863,2]
[319381842,1710708702323,-15776.4209305,0.0002,2]
[319381843,1710708702332,-4257.42144214,0.0002,2]
[319381844,1710708702341,-194.09771204,0.0002,2]
[319381845,1710708702350,-309.77515012,0.0002,2]
[319381846,1710708702358,-709.10142162,0.0002,2]
[319381847,1710708702369,-3367.05745657,0.0002,2]
[319381848,1710708702378,-400.0,0.0002,2]
[319381849,1710708702388,-150.0,0.0002,2]
[319381850,1710708702398,-151.0,0.0002,2]
[319381851,1710708702407,-151.0,0.0002,2]
[319381852,1710708702416,-11670.0240192,0.00020055,2]
[319381853,1710708702426,-15793.20484729,0.00020055,2]
[319381854,1710708702436,-808.0,0.00020097,2]
[319381855,1710708702445,-1500.0,0.000201,2]
[319381856,1710708702454,-1391.2102795,0.00020135,2]
[319381857,1710708702465,-600.0,0.00020172,2]
[319381858,1710708702474,-150.0,0.00020187,2]
[319381859,1710708702483,-11055.43,0.00020222,2]
[319381860,1710708702493,-151.0,0.00020236,2]
[319381861,1710708702503,-1378.0,0.00020236,2]
[319381862,1710708702513,-959.0,0.00020236,2]
[319381863,1710708702522,-2560.0,0.00020236,2]
[319381864,1710708702532,-536.0,0.00020236,2]
[319381865,1710708702542,-1227.0,0.00020236,2]
[319381866,1710708702552,-457.0,0.00020236,2]
[319381867,1710708702562,-1264.0,0.00020236,2]
[319381868,1710708702572,-603.0,0.00020236,2]
[319381869,1710708702581,-278.0,0.00020236,2]
[319381870,1710708702592,-1250.0,0.00020236,2]
[319381871,1710708702602,-432.0,0.00020236,2]
[319381872,1710708702612,-800.0,0.00020236,2]
[319381873,1710708702626,-1136.0,0.00020236,2]
[319381874,1710708702636,-3000.0,0.00020236,2]
[319381875,1710708702647,-150.0,0.00020236,2]
[319381876,1710708702658,-357.0,0.00020236,2]
[319381877,1710708702668,-1458.0,0.00020236,2]
[319381878,1710708702679,-150.0,0.00020236,2]
[319381879,1710708702688,-2419.0,0.00020236,2]
[319381880,1710708702699,-1623.0,0.00020236,2]
[319381881,1710708702710,-213.0,0.00020236,2]
[319381882,1710708702721,-42878.0,0.00020236,2]
[319381883,1710708702937,-4762.0,0.00020236,2]
[319381884,1710708702947,-2428.0,0.00020236,2]
[319381885,1710708702956,-5668.0,0.00020236,2]
[319381886,1710708702965,-1044.0,0.00020236,2]
[319381887,1710708702975,-240.0,0.00020284,2]
[319381888,1710708702985,-151.27358263,0.00020379,2]
[319381889,1710708702994,-11055.43,0.0002047,2]
[319381890,1710708703003,-1391.2102795,0.00020534,2]
[319381891,1710708703013,-207.136487,0.00020548,2]
[319381892,1710708703023,-170.15,0.00020548,2]
[319381893,1710708703033,-331.36629835,0.00020576,2]
[319381894,1710708703042,-1391.2102795,0.0002059,2]
[319381895,1710708703051,-1500.0,0.000206,2]
[319381896,1710708703060,-166.04113063,0.00020628,2]
[319381897,1710708703070,-1333.58173077,0.00020643,2]
[319381898,1710708703079,-1333.58173074,0.00020643,2]
[319381899,1710708703088,-150.0,0.00020692,2]
[319381900,1710708703097,-340.0,0.00020711,2]
[319381901,1710708703106,-11055.43,0.00020718,2]
[319381902,1710708703118,-459.21,0.00020724,2]
[319381903,1710708703128,-204.35,0.00020791,2]
[319381904,1710708703137,-151.27358263,0.00020798,2]
[319381905,1710708703147,-1391.2102795,0.00020862,2]
[319381906,1710708703156,-11055.43,0.00020966,2]
[319381907,1710708703166,-166.43347962,0.00020972,2]
[319381908,1710708703176,-700.0,0.00021,3]
[319381909,1710708703185,-572.42482296,0.00021009,2]
[319381910,1710708703194,-154.06087022,0.00021037,2]
[319381911,1710708703205,-10000.0,0.00021047,2]
[319381912,1710708703214,-154.11102108,0.00021074,2]
[319381913,1710708703297,-156.51853804,0.00021078,2]
[319381914,1710708703306,-9798.28,0.00021096,2]